[Event "*** Titled Tuesday Blitz"]
[Site "Chess.com"]
[Date "2020.10.20"]
[Round "1"]
[White "FloMasterAAK"]
[Black "SergeyShtyka"]
[Result "0-1"]
[WhiteElo "2526"]
[BlackElo "2245"]
[TimeControl "180+1"]
[EndTime "10:09:27 PDT"]
[Termination "SergeyShtyka won on time"]

1. e4 {[%clk 0:03:00.9]} 1... c5 {[%clk 0:02:56.3]} 2. Nf3 {[%clk 0:03:00.5]}
2... Nc6 {[%clk 0:02:55.5]} 3. d4 {[%clk 0:02:57]} 3... cxd4 {[%clk 0:02:55.7]}
4. Nxd4 {[%clk 0:02:57.9]} 4... Nf6 {[%clk 0:02:56]} 5. Nc3 {[%clk 0:02:58]}
5... e5 {[%clk 0:02:56.4]} 6. Ndb5 {[%clk 0:02:57.2]} 6... h6 {[%clk 0:02:56.2]}
7. Nd6+ {[%clk 0:02:52.7]} 7... Bxd6 {[%clk 0:02:55.6]} 8. Qxd6 {[%clk
0:02:53.6]} 8... Qe7 {[%clk 0:02:56.1]} 9. Qc7 {[%clk 0:02:52.4]} 9... d6 {[%clk
0:02:52.9]} 10. Qxe7+ {[%clk 0:02:33.5]} 10... Kxe7 {[%clk 0:02:52.7]} 11. Be3
{[%clk 0:02:32.4]} 11... Be6 {[%clk 0:02:52.2]} 12. O-O-O {[%clk 0:02:30.8]}
12... Ng4 {[%clk 0:02:49.2]} 13. Nd5+ {[%clk 0:02:19.9]} 13... Bxd5 {[%clk
0:02:48.7]} 14. exd5 {[%clk 0:02:20.8]} 14... Nxe3 {[%clk 0:02:47.2]} 15. fxe3
{[%clk 0:02:21.7]} 15... Nb8 {[%clk 0:02:33.4]} 16. c4 {[%clk 0:01:57.8]} 16...
Nd7 {[%clk 0:02:32.8]} 17. Bd3 {[%clk 0:01:55.3]} 17... Nc5 {[%clk 0:02:26.4]}
18. Bc2 {[%clk 0:01:54.9]} 18... a5 {[%clk 0:02:26.2]} 19. Kd2 {[%clk
0:01:51.3]} 19... Rac8 {[%clk 0:02:25.3]} 20. Kc3 {[%clk 0:01:44.2]} 20... g6
{[%clk 0:02:20.7]} 21. g4 {[%clk 0:01:41.1]} 21... h5 {[%clk 0:02:12]} 22. g5
{[%clk 0:01:40]} 22... Rc7 {[%clk 0:02:10.6]} 23. Rhf1 {[%clk 0:01:37.2]} 23...
Rhc8 {[%clk 0:02:10.2]} 24. a4 {[%clk 0:01:23.9]} 24... Nxa4+ {[%clk 0:01:46.9]}
25. Bxa4 {[%clk 0:01:22.7]} 25... Rxc4+ {[%clk 0:01:47]} 26. Kb3 {[%clk
0:01:22.9]} 26... b5 {[%clk 0:01:47.1]} 27. Bxb5 {[%clk 0:01:15.1]} 27... Rb4+
{[%clk 0:01:46.3]} 28. Ka3 {[%clk 0:01:16]} 28... Rxb5 {[%clk 0:01:44.6]} 29.
Rd2 {[%clk 0:01:14.8]} 29... Rcc5 {[%clk 0:01:25.7]} 30. Rdf2 {[%clk 0:01:11.8]}
30... f5 {[%clk 0:00:59.6]} 31. gxf6+ {[%clk 0:01:10.9]} 31... Kf7 {[%clk
0:01:00.2]} 32. e4 {[%clk 0:00:59.8]} 32... Rc4 {[%clk 0:00:59.8]} 33. Rf3
{[%clk 0:00:52]} 33... Rxe4 {[%clk 0:00:56]} 34. Rc3 {[%clk 0:00:44.7]} 34...
Rc5 {[%clk 0:00:55.6]} 35. Rb3 {[%clk 0:00:44.1]} 35... Rb4 {[%clk 0:00:55]} 36.
Rxb4 {[%clk 0:00:40.3]} 36... axb4+ {[%clk 0:00:55.2]} 37. Kxb4 {[%clk
0:00:41.2]} 37... Rxd5 {[%clk 0:00:55.8]} 38. Kc3 {[%clk 0:00:36.5]} 38... e4
{[%clk 0:00:51.2]} 39. b4 {[%clk 0:00:35.7]} 39... e3 {[%clk 0:00:50.7]} 40. Kc4
{[%clk 0:00:31]} 40... e2 {[%clk 0:00:46.6]} 41. Re1 {[%clk 0:00:30.3]} 41...
Rd2 {[%clk 0:00:43.1]} 42. b5 {[%clk 0:00:30]} 42... Kxf6 {[%clk 0:00:42.7]} 43.
b6 {[%clk 0:00:29.5]} 43... Rb2 {[%clk 0:00:42.6]} 44. Kd5 {[%clk 0:00:29.3]}
44... Rxb6 {[%clk 0:00:40.5]} 45. Rxe2 {[%clk 0:00:29.5]} 45... Kg7 {[%clk
0:00:39.1]} 46. Ke6 {[%clk 0:00:27.1]} 46... Kh6 {[%clk 0:00:37.9]} 47. Rg2
{[%clk 0:00:26]} 47... Rb1 {[%clk 0:00:32.3]} 48. Kxd6 {[%clk 0:00:24.9]} 48...
Re1 {[%clk 0:00:32.7]} 49. Kd5 {[%clk 0:00:22.9]} 49... h4 {[%clk 0:00:33]} 50.
Kd4 {[%clk 0:00:20.3]} 50... g5 {[%clk 0:00:33.4]} 51. Kd3 {[%clk 0:00:19.7]}
51... Kh5 {[%clk 0:00:33.7]} 52. Kd2 {[%clk 0:00:19.4]} 52... Re8 {[%clk
0:00:33.5]} 53. h3 {[%clk 0:00:19.7]} 53... Re7 {[%clk 0:00:33.1]} 54. Kd3
{[%clk 0:00:19.2]} 54... Re6 {[%clk 0:00:33.5]} 55. Kd2 {[%clk 0:00:18.9]} 55...
Re5 {[%clk 0:00:33.4]} 56. Kd3 {[%clk 0:00:18.7]} 56... Re1 {[%clk 0:00:33.5]}
57. Rf2 {[%clk 0:00:05.3]} 57... Rg1 {[%clk 0:00:31.2]} 58. Rf3 {[%clk
0:00:03.6]} 58... Rg3 {[%clk 0:00:31.3]} 59. Ke3 {[%clk 0:00:03.2]} 59... Rg1
{[%clk 0:00:31.6]} 60. Kf2 {[%clk 0:00:02.5]} 60... Rc1 {[%clk 0:00:31.2]} 61.
Kg2 {[%clk 0:00:02.5]} 61... Rc2+ {[%clk 0:00:30.9]} 62. Kh1 {[%clk 0:00:02.7]}
62... Rd2 {[%clk 0:00:29.7]} 63. Rf1 {[%clk 0:00:02.3]} 63... Re2 {[%clk
0:00:29.8]} 64. Rg1 {[%clk 0:00:02.3]} 64... Kg6 {[%clk 0:00:29.1]} 65. Rf1
{[%clk 0:00:01.8]} 65... Rd2 {[%clk 0:00:28.9]} 66. Kg1 {[%clk 0:00:01.5]} 66...
Rc2 {[%clk 0:00:29.2]} 67. Kh1 {[%clk 0:00:01.7]} 67... Rb2 {[%clk 0:00:29.7]}
68. Kg1 {[%clk 0:00:02.4]} 68... Ra2 {[%clk 0:00:30.1]} 69. Kh1 {[%clk
0:00:02.6]} 69... Ra3 {[%clk 0:00:30]} 70. Kh2 {[%clk 0:00:03.5]} 70... Rb3
{[%clk 0:00:29.8]} 71. Rf2 {[%clk 0:00:03.1]} 71... Rb4 {[%clk 0:00:29.8]} 72.
Rg2 {[%clk 0:00:04]} 72... Rf4 {[%clk 0:00:28.2]} 73. Ra2 {[%clk 0:00:03.9]}
73... Re4 {[%clk 0:00:27.7]} 74. Ra6+ {[%clk 0:00:03.8]} 74... Kf5 {[%clk
0:00:27.6]} 75. Ra2 {[%clk 0:00:04.4]} 75... Kf4 {[%clk 0:00:27.7]} 76. Rf2+
{[%clk 0:00:04.1]} 76... Ke3 {[%clk 0:00:28]} 77. Rg2 {[%clk 0:00:05]} 77... Re5
{[%clk 0:00:27.8]} 78. Rg4 {[%clk 0:00:04.5]} 78... Rf5 {[%clk 0:00:27.7]} 79.
Rg2 {[%clk 0:00:03.9]} 79... Kf3 {[%clk 0:00:27.1]} 80. Rg1 {[%clk 0:00:03.2]}
80... Ke2 {[%clk 0:00:25.2]} 81. Kh1 {[%clk 0:00:02.4]} 81... Rf1 {[%clk
0:00:21.1]} 0-1

[Event "*** Titled Tuesday Blitz"]
[Site "Chess.com"]
[Date "2020.10.20"]
[Round "1"]
[White "Oglob71"]
[Black "ArjunErigaisi2003"]
[Result "0-1"]
[WhiteElo "2453"]
[BlackElo "3032"]
[TimeControl "180+1"]
[EndTime "10:10:34 PDT"]
[Termination "ArjunErigaisi2003 won by resignation"]

1. d4 {[%clk 0:03:00.3]} 1... g6 {[%clk 0:02:55.9]} 2. Nf3 {[%clk 0:02:57.3]}
2... Bg7 {[%clk 0:02:54.8]} 3. c3 {[%clk 0:02:58.2]} 3... Nf6 {[%clk 0:02:53]}
4. Bg5 {[%clk 0:02:56.7]} 4... O-O {[%clk 0:02:53.2]} 5. Nbd2 {[%clk 0:02:55.2]}
5... d5 {[%clk 0:02:51.1]} 6. e3 {[%clk 0:02:54.9]} 6... Bf5 {[%clk 0:02:48.6]}
7. Be2 {[%clk 0:02:54.8]} 7... c6 {[%clk 0:02:43.6]} 8. h3 {[%clk 0:02:55]} 8...
h6 {[%clk 0:02:42.2]} 9. Bf4 {[%clk 0:02:54.6]} 9... Re8 {[%clk 0:02:42.4]} 10.
O-O {[%clk 0:02:54.4]} 10... Nbd7 {[%clk 0:02:43]} 11. Qb3 {[%clk 0:02:53.5]}
11... Qb6 {[%clk 0:02:42.3]} 12. c4 {[%clk 0:02:50.2]} 12... dxc4 {[%clk
0:02:32.5]} 13. Nxc4 {[%clk 0:02:43.1]} 13... Qxb3 {[%clk 0:02:30.8]} 14. axb3
{[%clk 0:02:43.6]} 14... a6 {[%clk 0:02:19.9]} 15. Na5 {[%clk 0:02:42.1]} 15...
Ra7 {[%clk 0:02:19.7]} 16. Nd2 {[%clk 0:02:34.1]} 16... Nd5 {[%clk 0:01:55.8]}
17. Bg3 {[%clk 0:02:34.2]} 17... e5 {[%clk 0:01:56.3]} 18. e4 {[%clk 0:02:32.6]}
18... exd4 {[%clk 0:01:56.6]} 19. Bf3 {[%clk 0:02:29.4]} 19... d3 {[%clk
0:01:44.9]} 20. exf5 {[%clk 0:02:29.1]} 20... Bxb2 {[%clk 0:01:45.4]} 21. Ra4
{[%clk 0:02:23.6]} 21... gxf5 {[%clk 0:01:41.3]} 22. Ndc4 {[%clk 0:02:21.4]}
22... Bc3 {[%clk 0:01:34.6]} 23. Nd6 {[%clk 0:02:21.2]} 23... Re1 {[%clk
0:01:24.2]} 24. Rxe1 {[%clk 0:02:18.7]} 24... Bxe1 {[%clk 0:01:25.1]} 25. Nxf5
{[%clk 0:02:10.4]} 25... Nc5 {[%clk 0:01:16.9]} 26. Ra2 {[%clk 0:02:02.2]} 26...
Nb4 {[%clk 0:01:07.7]} 27. Ra1 {[%clk 0:02:01.3]} 27... Bc3 {[%clk 0:01:07.6]}
28. Rb1 {[%clk 0:02:00.6]} 28... Nc2 {[%clk 0:00:51.7]} 29. Nc4 {[%clk
0:01:59.7]} 29... b5 {[%clk 0:00:51.3]} 30. Nce3 {[%clk 0:01:58.8]} 30... Na3
{[%clk 0:00:44.1]} 31. Rd1 {[%clk 0:01:58]} 31... d2 {[%clk 0:00:40.8]} 32. Bd6
{[%clk 0:01:56.1]} 32... Bb4 {[%clk 0:00:37.3]} 33. Bxc5 {[%clk 0:01:55.8]}
33... Bxc5 {[%clk 0:00:38.2]} 34. Rxd2 {[%clk 0:01:56.3]} 34... Kh7 {[%clk
0:00:37.2]} 35. Bxc6 {[%clk 0:01:55.5]} 35... Kg6 {[%clk 0:00:34.3]} 36. Be4
{[%clk 0:01:55]} 36... Kf6 {[%clk 0:00:34.5]} 37. g3 {[%clk 0:01:54.7]} 37... a5
{[%clk 0:00:32.6]} 38. Kg2 {[%clk 0:01:48.9]} 38... a4 {[%clk 0:00:32.6]} 39.
Ng4+ {[%clk 0:01:49]} 39... Ke6 {[%clk 0:00:30.3]} 40. bxa4 {[%clk 0:01:44.2]}
40... Rxa4 {[%clk 0:00:30.5]} 41. Bd3 {[%clk 0:01:41.5]} 41... b4 {[%clk
0:00:26.1]} 42. Re2+ {[%clk 0:01:38.1]} 42... Kd5 {[%clk 0:00:25.1]} 43. Nf6+
{[%clk 0:01:38.3]} 43... Kc6 {[%clk 0:00:25.2]} 44. Ne3 {[%clk 0:01:29.9]} 44...
b3 {[%clk 0:00:23.6]} 45. Ne4 {[%clk 0:01:21.9]} 45... Bd4 {[%clk 0:00:22.3]}
46. Nd2 {[%clk 0:01:17.6]} 46... Rb4 {[%clk 0:00:20.6]} 47. Be4+ {[%clk
0:01:10.6]} 47... Kc5 {[%clk 0:00:20]} 48. Nb1 {[%clk 0:01:07.1]} 48... Nxb1
{[%clk 0:00:13.9]} 49. Bxb1 {[%clk 0:01:06.8]} 49... Ra4 {[%clk 0:00:14.8]} 50.
Nf5 {[%clk 0:01:00.1]} 50... Bc3 {[%clk 0:00:11]} 51. Re8 {[%clk 0:00:53.5]}
51... Ra1 {[%clk 0:00:10.6]} 52. Be4 {[%clk 0:00:53.5]} 52... Re1 {[%clk
0:00:09.1]} 53. Rc8+ {[%clk 0:00:50.1]} 53... Kb4 {[%clk 0:00:09.6]} 54. Ne3
{[%clk 0:00:50.1]} 54... Bd2 {[%clk 0:00:06.5]} 55. Rb8+ {[%clk 0:00:49.2]}
55... Kc3 {[%clk 0:00:07]} 56. Nd5+ {[%clk 0:00:49]} 56... Kd4 {[%clk
0:00:07.4]} 57. Bf3 {[%clk 0:00:47.1]} 57... Rb1 {[%clk 0:00:07.9]} 58. Nf4
{[%clk 0:00:38.1]} 58... b2 {[%clk 0:00:06.7]} 59. Bh5 {[%clk 0:00:33.9]} 59...
Bc1 {[%clk 0:00:04.8]} 60. Bxf7 {[%clk 0:00:32.2]} 60... Ra1 {[%clk 0:00:05.2]}
61. Bg6 {[%clk 0:00:32.7]} 61... Ra6 {[%clk 0:00:04.2]} 62. Bb1 {[%clk 0:00:32]}
62... Ra1 {[%clk 0:00:04.2]} 63. Bh7 {[%clk 0:00:31.7]} 63... Ra7 {[%clk
0:00:04.3]} 64. Bg6 {[%clk 0:00:30.8]} 64... Ra6 {[%clk 0:00:04.6]} 65. Bf5
{[%clk 0:00:30.8]} 65... Ra5 {[%clk 0:00:04.8]} 66. Bc2 {[%clk 0:00:28.5]} 66...
Rc5 {[%clk 0:00:04.5]} 67. Bb1 {[%clk 0:00:28.4]} 67... Ra5 {[%clk 0:00:04.9]}
68. Ne2+ {[%clk 0:00:26.9]} 68... Ke5 {[%clk 0:00:04.3]} 69. f4+ {[%clk
0:00:24.7]} 69... Kf6 {[%clk 0:00:04.1]} 70. Kf3 {[%clk 0:00:25.1]} 70... Ra1
{[%clk 0:00:03.8]} 71. Be4 {[%clk 0:00:24.3]} 71... Ra3+ {[%clk 0:00:04.1]} 72.
Kg4 {[%clk 0:00:24.5]} 72... Re3 {[%clk 0:00:04.2]} 73. Rb6+ {[%clk 0:00:24.4]}
73... Kg7 {[%clk 0:00:04.1]} 74. Bf3 {[%clk 0:00:24.8]} 74... h5+ {[%clk
0:00:04.6]} 75. Kxh5 {[%clk 0:00:24.1]} 75... Rxf3 {[%clk 0:00:05.5]} 76. Rb7+
{[%clk 0:00:22.7]} 76... Kf6 {[%clk 0:00:05.9]} 77. Rb5 {[%clk 0:00:21.2]} 77...
Re3 {[%clk 0:00:05.8]} 78. Nd4 {[%clk 0:00:19]} 78... Rxg3 {[%clk 0:00:05.6]}
79. Rb6+ {[%clk 0:00:19.5]} 79... Kf7 {[%clk 0:00:05.6]} 80. h4 {[%clk 0:00:20]}
80... Rd3 {[%clk 0:00:04.6]} 81. Ne2 {[%clk 0:00:17.5]} 81... Re3 {[%clk
0:00:03.8]} 82. Nd4 {[%clk 0:00:17]} 82... Re4 {[%clk 0:00:03.4]} 83. Rb7+
{[%clk 0:00:15.3]} 83... Ke8 {[%clk 0:00:03.3]} 84. Nc2 {[%clk 0:00:10.4]} 84...
Rxf4 {[%clk 0:00:03.4]} 85. Na3 {[%clk 0:00:10.7]} 85... Kd8 {[%clk 0:00:03.3]}
86. Nb1 {[%clk 0:00:10.9]} 86... Kc8 {[%clk 0:00:03.8]} 87. Rb3 {[%clk
0:00:11.4]} 87... Kd7 {[%clk 0:00:04.1]} 88. Rb6 {[%clk 0:00:10.6]} 88... Kc7
{[%clk 0:00:04.2]} 89. Rb3 {[%clk 0:00:11.2]} 89... Kc6 {[%clk 0:00:04.6]} 90.
Rb8 {[%clk 0:00:11.2]} 90... Kd5 {[%clk 0:00:04.7]} 91. Na3 {[%clk 0:00:11.5]}
91... Rf3 {[%clk 0:00:04.6]} 92. Nb1 {[%clk 0:00:11.4]} 92... Kc4 {[%clk
0:00:04.8]} 93. Kg6 {[%clk 0:00:09.7]} 93... Rg3+ {[%clk 0:00:04.8]} 94. Kf5
{[%clk 0:00:09.3]} 94... Rf3+ {[%clk 0:00:04.7]} 95. Kg6 {[%clk 0:00:09.1]}
95... Rg3+ {[%clk 0:00:05]} 96. Kf5 {[%clk 0:00:09.1]} 96... Rh3 {[%clk
0:00:05.6]} 97. Kg4 {[%clk 0:00:08.5]} 97... Rh1 {[%clk 0:00:06.1]} 98. Na3+
{[%clk 0:00:07.6]} 98... Kd3 {[%clk 0:00:06.2]} 99. h5 {[%clk 0:00:08.2]} 99...
Rg1+ {[%clk 0:00:06.2]} 100. Kf5 {[%clk 0:00:08.4]} 100... Rg5+ {[%clk
0:00:06.5]} 101. Ke6 {[%clk 0:00:08.7]} 101... Rxh5 {[%clk 0:00:07.4]} 102. Kd6
{[%clk 0:00:08.9]} 102... Kc3 {[%clk 0:00:05.3]} 103. Ke6 {[%clk 0:00:08]}
103... Ra5 {[%clk 0:00:04.9]} 104. Nb1+ {[%clk 0:00:08.1]} 104... Kc2 {[%clk
0:00:05.2]} 105. Kd6 {[%clk 0:00:04.6]} 105... Kxb1 {[%clk 0:00:05.3]} 106. Kc6
{[%clk 0:00:03.7]} 106... Ka1 {[%clk 0:00:05.7]} 0-1

[Event "*** Titled Tuesday Blitz"]
[Site "Chess.com"]
[Date "2020.10.20"]
[Round "2"]
[White "kot60"]
[Black "PattyCastillo"]
[Result "1-0"]
[WhiteElo "2357"]
[BlackElo "1934"]
[TimeControl "180+1"]
[EndTime "10:13:05 PDT"]
[Termination "kot60 won by resignation"]

1. e4 {[%clk 0:03:00.9]} 1... c5 {[%clk 0:02:59.5]} 2. Nc3 {[%clk 0:03:00.4]}
2... Nc6 {[%clk 0:02:59.1]} 3. Bc4 {[%clk 0:03:00.3]} 3... e6 {[%clk 0:02:58.9]}
4. d3 {[%clk 0:03:00.5]} 4... g6 {[%clk 0:02:59]} 5. f4 {[%clk 0:03:00.2]} 5...
Bg7 {[%clk 0:02:58.8]} 6. f5 {[%clk 0:03:00.4]} 6... d5 {[%clk 0:02:55.3]} 7.
exd5 {[%clk 0:02:53.7]} 7... Bxc3+ {[%clk 0:02:53.3]} 8. bxc3 {[%clk 0:02:52.7]}
8... exd5 {[%clk 0:02:54]} 9. Bb3 {[%clk 0:02:52.6]} 9... Bxf5 {[%clk
0:02:51.5]} 10. Ne2 {[%clk 0:02:53]} 10... Nge7 {[%clk 0:02:51.2]} 11. a4 {[%clk
0:02:48.7]} 11... O-O {[%clk 0:02:47.9]} 12. O-O {[%clk 0:02:48]} 12... Rc8
{[%clk 0:02:45.7]} 13. Ng3 {[%clk 0:02:47.4]} 13... Be6 {[%clk 0:02:42.5]} 14.
Bg5 {[%clk 0:02:46.2]} 14... Qe8 {[%clk 0:02:38.5]} 15. Bf6 {[%clk 0:02:39.2]}
15... c4 {[%clk 0:02:17.6]} 16. Qd2 {[%clk 0:02:38.4]} 1-0

[Event "*** Titled Tuesday Blitz"]
[Site "Chess.com"]
[Date "2020.10.20"]
[Round "2"]
[White "ZarinaShafigullina"]
[Black "TomiLen"]
[Result "0-1"]
[WhiteElo "2327"]
[BlackElo "2601"]
[TimeControl "180+1"]
[EndTime "10:13:51 PDT"]
[Termination "TomiLen won by resignation"]

1. d4 {[%clk 0:03:00.2]} 1... d5 {[%clk 0:02:59.2]} 2. Nf3 {[%clk 0:03:00.2]}
2... Nf6 {[%clk 0:02:58.8]} 3. c4 {[%clk 0:02:58]} 3... c6 {[%clk 0:02:59]} 4.
g3 {[%clk 0:02:57.7]} 4... Bg4 {[%clk 0:02:56.6]} 5. Bg2 {[%clk 0:02:55.6]} 5...
e6 {[%clk 0:02:55.8]} 6. O-O {[%clk 0:02:54.8]} 6... Nbd7 {[%clk 0:02:55.9]} 7.
b3 {[%clk 0:02:52]} 7... Be7 {[%clk 0:02:55.5]} 8. Nbd2 {[%clk 0:02:51.5]} 8...
O-O {[%clk 0:02:55.3]} 9. Re1 {[%clk 0:02:51.5]} 9... a5 {[%clk 0:02:55.1]} 10.
e4 {[%clk 0:02:50.4]} 10... dxe4 {[%clk 0:02:53.1]} 11. Nxe4 {[%clk 0:02:50.3]}
11... Nxe4 {[%clk 0:02:53]} 12. Rxe4 {[%clk 0:02:50.1]} 12... Nf6 {[%clk
0:02:53.1]} 13. Re1 {[%clk 0:02:49.7]} 13... Bb4 {[%clk 0:02:41.6]} 14. Re3
{[%clk 0:02:22.3]} 14... a4 {[%clk 0:02:30]} 15. Bd2 {[%clk 0:02:16.3]} 15...
Bxd2 {[%clk 0:02:20]} 16. Qxd2 {[%clk 0:02:12.8]} 16... axb3 {[%clk 0:02:18.4]}
17. Rxb3 {[%clk 0:02:09.6]} 17... Bxf3 {[%clk 0:02:13.7]} 18. Bxf3 {[%clk
0:02:08.9]} 18... Qc7 {[%clk 0:02:12.9]} 19. Qf4 {[%clk 0:02:04.4]} 19... Rfc8
{[%clk 0:02:01.6]} 20. g4 {[%clk 0:02:02.6]} 20... Qxf4 {[%clk 0:02:00.6]} 0-1

[Event "*** Titled Tuesday Blitz"]
[Site "Chess.com"]
[Date "2020.10.20"]
[Round "2"]
[White "MokshanovAlexey"]
[Black "dretch"]
[Result "1-0"]
[WhiteElo "2540"]
[BlackElo "2803"]
[TimeControl "180+1"]
[EndTime "10:13:54 PDT"]
[Termination "MokshanovAlexey won by resignation"]

1. e4 {[%clk 0:03:00.9]} 1... e6 {[%clk 0:02:55.7]} 2. d4 {[%clk 0:03:00.4]}
2... d5 {[%clk 0:02:56]} 3. e5 {[%clk 0:03:00.8]} 3... c5 {[%clk 0:02:55.3]} 4.
c3 {[%clk 0:03:01.1]} 4... Nc6 {[%clk 0:02:55.5]} 5. Nf3 {[%clk 0:03:01.5]} 5...
Qb6 {[%clk 0:02:53.7]} 6. a3 {[%clk 0:03:01.6]} 6... Nge7 {[%clk 0:02:49.1]} 7.
b4 {[%clk 0:03:00.2]} 7... cxd4 {[%clk 0:02:48.7]} 8. cxd4 {[%clk 0:03:01.1]}
8... Nf5 {[%clk 0:02:48.9]} 9. Be3 {[%clk 0:02:54.5]} 9... f6 {[%clk 0:02:37.1]}
10. exf6 {[%clk 0:02:53.5]} 10... gxf6 {[%clk 0:02:36.5]} 11. Bd3 {[%clk
0:02:53.8]} 11... Nxe3 {[%clk 0:02:35.6]} 12. fxe3 {[%clk 0:02:54.7]} 12... Bd7
{[%clk 0:02:33.8]} 13. O-O {[%clk 0:02:54.4]} 13... Bh6 {[%clk 0:02:31.7]} 14.
Qe1 {[%clk 0:02:53.8]} 14... Ne7 {[%clk 0:02:26.6]} 15. Nc3 {[%clk 0:02:50.6]}
15... O-O-O {[%clk 0:02:20.5]} 16. e4 {[%clk 0:02:48.6]} 16... Kb8 {[%clk
0:02:09.4]} 17. exd5 {[%clk 0:02:38.4]} 17... Nxd5 {[%clk 0:02:09.1]} 18. Nxd5
{[%clk 0:02:38.3]} 18... exd5 {[%clk 0:02:09]} 19. Kh1 {[%clk 0:02:36.6]} 19...
Rde8 {[%clk 0:01:52.4]} 20. Qh4 {[%clk 0:02:32]} 20... Be3 {[%clk 0:01:51.3]}
21. Rae1 {[%clk 0:02:23.4]} 21... h5 {[%clk 0:01:37.4]} 22. Rxe3 {[%clk
0:02:22.8]} 1-0

[Event "*** Titled Tuesday Blitz"]
[Site "Chess.com"]
[Date "2020.10.20"]
[Round "2"]
[White "Meri-Arabidze"]
[Black "szefru"]
[Result "1-0"]
[WhiteElo "2652"]
[BlackElo "2243"]
[TimeControl "180+1"]
[EndTime "10:13:54 PDT"]
[Termination "Meri-Arabidze won by checkmate"]

1. d4 {[%clk 0:03:00.9]} 1... Nf6 {[%clk 0:02:58.6]} 2. c4 {[%clk 0:03:01.4]}
2... g6 {[%clk 0:02:58.3]} 3. Nc3 {[%clk 0:03:01.6]} 3... Bg7 {[%clk 0:02:58.3]}
4. g3 {[%clk 0:03:02.2]} 4... O-O {[%clk 0:02:54.8]} 5. Bg2 {[%clk 0:03:02.8]}
5... c6 {[%clk 0:02:55.1]} 6. e4 {[%clk 0:03:02.6]} 6... d6 {[%clk 0:02:47.3]}
7. Nge2 {[%clk 0:03:02.3]} 7... e5 {[%clk 0:02:46.6]} 8. O-O {[%clk 0:03:02.6]}
8... Re8 {[%clk 0:02:42.1]} 9. Re1 {[%clk 0:03:01.7]} 9... exd4 {[%clk
0:02:39.4]} 10. Nxd4 {[%clk 0:03:02.6]} 10... Nbd7 {[%clk 0:02:37.9]} 11. f3
{[%clk 0:03:02.7]} 11... Ne5 {[%clk 0:02:35.7]} 12. b3 {[%clk 0:03:01.6]} 12...
Nfd7 {[%clk 0:02:00.4]} 13. Be3 {[%clk 0:02:58.3]} 13... Nf8 {[%clk 0:01:53.9]}
14. Qc2 {[%clk 0:02:54.9]} 14... Ne6 {[%clk 0:01:53.8]} 15. Rad1 {[%clk
0:02:54.8]} 15... Nxd4 {[%clk 0:01:50.4]} 16. Bxd4 {[%clk 0:02:55.7]} 16... Qc7
{[%clk 0:01:50.6]} 17. f4 {[%clk 0:02:53.7]} 17... Ng4 {[%clk 0:01:47.4]} 18.
Bxg7 {[%clk 0:02:54.1]} 18... Kxg7 {[%clk 0:01:48.3]} 19. Qd2 {[%clk 0:02:50.2]}
19... Rd8 {[%clk 0:01:44.1]} 20. Qd4+ {[%clk 0:02:49.2]} 20... Kg8 {[%clk
0:01:41.6]} 21. h3 {[%clk 0:02:48.1]} 21... Nh6 {[%clk 0:01:40.6]} 22. c5 {[%clk
0:02:47.4]} 22... d5 {[%clk 0:01:31.8]} 23. exd5 {[%clk 0:02:45.2]} 23... cxd5
{[%clk 0:01:31.7]} 24. Nxd5 {[%clk 0:02:44.7]} 24... Rxd5 {[%clk 0:01:31]} 25.
Re8# {[%clk 0:02:42.3]} 1-0

[Event "*** Titled Tuesday Blitz"]
[Site "Chess.com"]
[Date "2020.10.20"]
[Round "2"]
[White "MrChampion_Coach"]
[Black "enriquebutti"]
[Result "1-0"]
[WhiteElo "2366"]
[BlackElo "1991"]
[TimeControl "180+1"]
[EndTime "10:14:17 PDT"]
[Termination "MrChampion_Coach won by resignation"]

1. d4 {[%clk 0:03:00.9]} 1... Nf6 {[%clk 0:02:45.9]} 2. c4 {[%clk 0:02:59.1]}
2... e6 {[%clk 0:02:45.2]} 3. Nc3 {[%clk 0:02:58.3]} 3... c5 {[%clk 0:02:44.6]}
4. d5 {[%clk 0:02:57.4]} 4... exd5 {[%clk 0:02:44.2]} 5. cxd5 {[%clk 0:02:58.3]}
5... d6 {[%clk 0:02:44]} 6. Nf3 {[%clk 0:02:57.4]} 6... g6 {[%clk 0:02:43.5]} 7.
Bf4 {[%clk 0:02:57.3]} 7... Bg7 {[%clk 0:02:40.7]} 8. e3 {[%clk 0:02:57.3]} 8...
O-O {[%clk 0:02:39.7]} 9. Be2 {[%clk 0:02:56.7]} 9... Re8 {[%clk 0:02:39.1]} 10.
O-O {[%clk 0:02:55.7]} 10... a6 {[%clk 0:02:34.1]} 11. a4 {[%clk 0:02:49.3]}
11... Qc7 {[%clk 0:02:24.5]} 12. Nd2 {[%clk 0:02:45.5]} 12... Nbd7 {[%clk
0:02:19.3]} 13. Nc4 {[%clk 0:02:44.9]} 13... Bf8 {[%clk 0:02:15.6]} 14. Bf3
{[%clk 0:02:27.5]} 14... Rb8 {[%clk 0:02:12]} 15. a5 {[%clk 0:02:13]} 15... b5
{[%clk 0:02:09.9]} 16. axb6 {[%clk 0:02:13.9]} 16... Nxb6 {[%clk 0:02:07.6]} 17.
Na5 {[%clk 0:02:14.1]} 17... Bd7 {[%clk 0:02:06.6]} 18. Qd3 {[%clk 0:02:04]}
18... c4 {[%clk 0:02:00.9]} 19. Qd4 {[%clk 0:02:02.4]} 19... Bg7 {[%clk
0:01:55.4]} 20. Qd2 {[%clk 0:02:01.5]} 20... Bb5 {[%clk 0:01:50.1]} 21. Nc6
{[%clk 0:01:55.1]} 21... Bxc6 {[%clk 0:01:49]} 22. dxc6 {[%clk 0:01:56]} 1-0

[Event "*** Titled Tuesday Blitz"]
[Site "Chess.com"]
[Date "2020.10.20"]
[Round "2"]
[White "gliglu"]
[Black "kleinebeer98"]
[Result "0-1"]
[WhiteElo "2330"]
[BlackElo "2613"]
[TimeControl "180+1"]
[EndTime "10:14:18 PDT"]
[Termination "kleinebeer98 won by resignation"]

1. d4 {[%clk 0:03:00.9]} 1... a6 {[%clk 0:02:56.5]} 2. c4 {[%clk 0:03:00.2]}
2... b5 {[%clk 0:02:56.6]} 3. cxb5 {[%clk 0:02:59.1]} 3... axb5 {[%clk
0:02:57.5]} 4. Nf3 {[%clk 0:02:59]} 4... Bb7 {[%clk 0:02:57.8]} 5. g3 {[%clk
0:02:59.1]} 5... g6 {[%clk 0:02:57.5]} 6. Bg2 {[%clk 0:02:59.1]} 6... Bg7 {[%clk
0:02:57.2]} 7. O-O {[%clk 0:02:58.8]} 7... Nf6 {[%clk 0:02:57.8]} 8. b3 {[%clk
0:02:56.4]} 8... O-O {[%clk 0:02:57.2]} 9. Bb2 {[%clk 0:02:56.3]} 9... Ne4
{[%clk 0:02:57.3]} 10. Nc3 {[%clk 0:02:55.3]} 10... b4 {[%clk 0:02:54.7]} 11.
Nxe4 {[%clk 0:02:54.3]} 11... Bxe4 {[%clk 0:02:55.6]} 12. Qd2 {[%clk 0:02:53.8]}
12... d6 {[%clk 0:02:51.8]} 13. Qxb4 {[%clk 0:02:50.8]} 13... Nc6 {[%clk
0:02:45.7]} 14. Qd2 {[%clk 0:02:50.5]} 14... Qb8 {[%clk 0:02:28.5]} 15. Rfc1
{[%clk 0:02:46.4]} 15... Nb4 {[%clk 0:02:21.8]} 16. a3 {[%clk 0:02:39.6]} 16...
Nd5 {[%clk 0:02:19.7]} 17. b4 {[%clk 0:02:38.9]} 17... Qb7 {[%clk 0:02:13.6]}
18. Ne1 {[%clk 0:02:38.3]} 18... Bxg2 {[%clk 0:02:13.2]} 19. Nxg2 {[%clk
0:02:38.1]} 19... Rfb8 {[%clk 0:02:11.4]} 20. f3 {[%clk 0:02:37.8]} 20... Nb6
{[%clk 0:02:07.6]} 21. e4 {[%clk 0:02:36.2]} 21... Na4 {[%clk 0:02:07]} 22. Rc2
{[%clk 0:02:33.7]} 22... c5 {[%clk 0:02:05.5]} 23. bxc5 {[%clk 0:02:08.3]} 23...
Nxb2 {[%clk 0:02:03.9]} 24. Rb1 {[%clk 0:02:07.9]} 24... dxc5 {[%clk 0:01:59.8]}
25. Rcxb2 {[%clk 0:02:04.6]} 25... Qxb2 {[%clk 0:01:55.9]} 26. Rxb2 {[%clk
0:02:03]} 26... Rxb2 {[%clk 0:01:52.2]} 27. Qf4 {[%clk 0:01:57.7]} 27... Bxd4+
{[%clk 0:01:52.1]} 28. Kh1 {[%clk 0:01:56.9]} 28... Rb1+ {[%clk 0:01:51.6]} 0-1